bitfinex/quotes_BTCUSD_20230904
["timestamp","ask_amount","ask_price","bid_price","bid_amount"]
[1693864923866,0.0205,25699.0,25698.0,0.77870604]
[1693864924075,0.0196,25700.0,25698.0,1.37711904]
[1693864924276,1.2696,25705.0,25699.0,0.38664527]
[1693864924492,0.378,25701.0,25699.0,0.54130338]
[1693864924703,1.934397,25701.0,25700.0,0.1618]
[1693864924921,2.712604,25701.0,25700.0,0.1618]
[1693864925155,3.49568123,25701.0,25700.0,0.1618]
[1693864925366,3.49568123,25701.0,25698.0,0.2118]
[1693864925367,3.94805372,25701.0,25698.0,0.2118]
[1693864925583,3.94805372,25701.0,25698.0,0.05]
[1693864925584,1.08307723,25700.0,25698.0,0.05]
[1693864925798,2.33472,25699.0,25698.0,0.05]
[1693864926036,3.41779723,25699.0,25698.0,0.05]
[1693864926237,1.07824,25699.0,25698.0,0.41164527]
[1693864926448,0.3,25699.0,25698.0,0.41164527]
[1693864926665,0.3,25699.0,25698.0,0.38664527]
[1693864926871,1.07824,25699.0,25698.0,0.38664527]
[1693864927074,1.08913389,25699.0,25698.0,0.38664527]
[1693864927318,1.08913389,25699.0,25698.0,0.38764527]
[1693864927523,1.08913389,25699.0,25698.0,0.38664527]
[1693864927766,1.08913389,25699.0,25698.0,0.001]
[1693864927767,2.64561389,25699.0,25698.0,0.001]
[1693864927974,3.39933723,25699.0,25698.0,0.001]
[1693864928186,3.39933723,25699.0,25697.0,0.1618]
[1693864928394,3.39933723,25699.0,25697.0,0.54844527]
[1693864928601,0.678,25698.0,25697.0,0.54844527]
[1693864928806,3.01281,25698.0,25697.0,0.54844527]
[1693864929244,2.23454,25698.0,25697.0,0.54844527]
[1693864930217,0.678,25698.0,25697.0,0.76105616]
[1693864930759,0.678,25698.0,25697.0,0.76305616]
[1693864930947,0.678,25698.0,25697.0,0.80197116]
[1693864931097,0.378,25698.0,25697.0,0.79997116]
[1693864931313,0.378,25698.0,25697.0,0.39664527]
[1693864932299,0.378,25698.0,25697.0,0.38864527]
[1693864932492,0.378,25698.0,25697.0,0.40464527]
[1693864932607,0.378,25698.0,25697.0,0.40264527]
[1693864932827,0.378,25698.0,25697.0,0.39764527]
[1693864933033,0.378,25698.0,25697.0,0.40564527]
[1693864933302,0.378,25698.0,25697.0,0.38664527]
[1693864933654,0.378,25698.0,25697.0,0.41364527]
[1693864933855,0.378,25698.0,25697.0,0.39764527]
[1693864934141,0.378,25698.0,25697.0,0.38664527]
[1693864934346,0.378,25698.0,25697.0,0.38864527]
[1693864934541,0.378,25698.0,25697.0,0.64918499]
[1693864935610,0.378,25698.0,25697.0,0.67218499]
[1693864935825,0.378,25698.0,25697.0,0.69718499]
[1693864936442,0.378,25698.0,25697.0,0.67218499]
[1693864936642,0.378,25698.0,25697.0,0.69718499]
[1693864936853,0.378,25698.0,25697.0,0.67218499]
[1693864937073,0.378,25698.0,25697.0,0.57572877]
[1693864937279,0.01089389,25699.0,25697.0,0.88932816]
[1693864937543,0.01089389,25699.0,25698.0,0.54844527]
[1693864938368,0.01089389,25699.0,25698.0,0.66518427]
[1693864939233,0.01089389,25699.0,25698.0,0.69018427]
[1693864939440,0.01089389,25699.0,25698.0,0.83742686]
[1693864939635,0.01089389,25699.0,25698.0,0.90374811]
[1693864939836,0.01089389,25699.0,25698.0,0.95374811]
[1693864940041,0.01089389,25699.0,25698.0,0.92874811]
[1693864940257,0.01089389,25699.0,25698.0,0.90374811]
[1693864940473,0.01089389,25699.0,25698.0,0.92874811]
[1693864940639,0.01089389,25699.0,25698.0,0.95374811]
[1693864940835,0.01089389,25699.0,25698.0,0.91483511]
[1693864941040,0.01089389,25699.0,25698.0,0.59844527]
[1693864941863,0.01089389,25699.0,25698.0,0.57344527]
[1693864942121,0.01089389,25699.0,25698.0,0.54844527]
[1693864942317,0.01089389,25699.0,25698.0,0.57344527]
[1693864942492,0.01089389,25699.0,25698.0,0.54844527]
[1693864942718,0.01089389,25699.0,25698.0,0.57344527]
[1693864942927,0.01089389,25699.0,25698.0,0.59844527]
[1693864943137,0.01089389,25699.0,25698.0,0.68118625]
[1693864943316,0.01089389,25699.0,25698.0,0.59844527]
[1693864943719,0.01089389,25699.0,25698.0,0.57344527]
[1693864943928,0.01089389,25699.0,25698.0,0.59844527]
[1693864944762,0.01089389,25699.0,25698.0,0.57344527]
[1693864945127,0.01089389,25699.0,25698.0,0.59244527]
[1693864945683,0.01089389,25699.0,25698.0,0.54844527]
[1693864946030,0.01089389,25699.0,25698.0,0.56744527]
[1693864946260,0.01089389,25699.0,25698.0,0.55944527]
[1693864946470,0.01089389,25699.0,25698.0,0.57544527]
[1693864947592,0.01089389,25699.0,25698.0,0.76510365]
[1693864947754,0.01089389,25699.0,25698.0,0.80401665]
[1693864947953,0.01089389,25699.0,25698.0,1.06864801]
[1693864948199,0.01089389,25699.0,25698.0,0.80401665]
[1693864948406,0.01089389,25699.0,25698.0,1.08726936]
[1693864949218,0.09246041,25702.0,25698.0,1.21271665]
[1693864949413,0.23115102,25702.0,25701.0,0.42555327]
[1693864949560,0.24554072,25702.0,25701.0,0.42555327]
[1693864950052,0.24554072,25702.0,25701.0,0.69861823]
[1693864950574,0.38423133,25702.0,25701.0,0.71461823]
[1693864950782,0.38423133,25702.0,25701.0,0.75352623]
[1693864951412,0.38423133,25702.0,25701.0,0.75452623]
[1693864951627,0.15308031,25702.0,25701.0,1.23263721]
[1693864951857,0.0196,25705.0,25701.0,1.3110191]
[1693864952074,0.0196,25705.0,25704.0,0.38664527]
[1693864952280,0.0196,25705.0,25704.0,0.78805327]
[1693864952704,0.0196,25705.0,25704.0,1.08618709]
[1693864952926,0.0196,25705.0,25704.0,1.2395663]
[1693864953391,0.0196,25705.0,25704.0,1.6482663]
[1693864953855,0.0196,25705.0,25704.0,1.6732663]
[1693864954033,0.0196,25705.0,25704.0,1.41403648]
[1693864954292,0.11206041,25706.0,25705.0,0.70391316]
[1693864954293,0.0196,25706.0,25705.0,0.70391316]
[1693864954496,0.0196,25706.0,25705.0,0.93447789]
[1693864954699,0.39556041,25706.0,25705.0,0.75966243]
[1693864954880,0.3031,25706.0,25705.0,0.75966243]
[1693864955500,0.40607853,25706.0,25705.0,0.38664527]
[1693864955712,0.35280873,25706.0,25705.0,0.38664527]
[1693864955913,0.45230873,25706.0,25705.0,0.38664527]
[1693864956116,0.54505949,25706.0,25705.0,0.41164527]
[1693864956542,0.45230873,25706.0,25705.0,0.50591593]
[1693864956747,0.4063716,25706.0,25705.0,0.60410384]
[1693864957155,0.1228716,25706.0,25705.0,0.64300584]
[1693864957357,0.1228716,25706.0,25705.0,0.68190784]
[1693864957559,0.1228716,25706.0,25705.0,0.65100584]
[1693864957803,0.26156221,25706.0,25705.0,0.54481793]
[1693864958004,0.26156221,25706.0,25705.0,0.48091593]
[1693864958210,0.1228716,25706.0,25705.0,0.50591593]
[1693864958409,0.1228716,25706.0,25705.0,0.6335191]
[1693864958615,0.26156221,25706.0,25705.0,0.6335191]
[1693864958829,0.26156221,25706.0,25705.0,0.6704211]
[1693864959218,0.26156221,25706.0,25705.0,1.1430231]
[1693864959421,0.26156221,25706.0,25705.0,1.1819251]
[1693864959422,0.1228716,25706.0,25705.0,1.1819251]
[1693864959626,0.1228716,25706.0,25705.0,1.1430231]
[1693864960042,0.1228716,25706.0,25705.0,1.1819251]
[1693864960246,0.1228716,25706.0,25705.0,1.1430231]
[1693864962505,0.07100484,25706.0,25705.0,1.05632193]
[1693864962750,0.09060484,25707.0,25705.0,1.05632193]
[1693864962957,0.09060484,25707.0,25706.0,1.09902776]
[1693864963160,0.09060484,25707.0,25706.0,1.21573076]
[1693864964222,0.09060484,25707.0,25706.0,1.46917782]
[1693864964429,0.09060484,25707.0,25706.0,1.21573076]
[1693864964631,0.09060484,25707.0,25706.0,1.24073076]
[1693864964844,0.05509643,25707.0,25706.0,1.24073076]
[1693864965049,0.15829061,25708.0,25706.0,1.26073076]
[1693864965050,0.0196,25708.0,25706.0,1.26073076]
[1693864965257,0.0196,25708.0,25707.0,0.93473561]
[1693864965464,0.0196,25708.0,25707.0,1.05143261]
[1693864966087,0.0196,25708.0,25707.0,1.20704361]
[1693864966908,0.0196,25708.0,25707.0,1.22304361]
[1693864967747,0.0196,25708.0,25707.0,1.38484361]
[1693864968512,0.00359711,25709.0,25707.0,1.46244361]
[1693864968718,0.00359711,25709.0,25708.0,1.12345973]
[1693864968972,0.00359711,25709.0,25708.0,1.24015373]
[1693864969771,0.00359711,25709.0,25708.0,1.52506967]
[1693864969972,0.00359711,25709.0,25708.0,1.47833171]
[1693864970151,0.00359711,25709.0,25708.0,1.26515373]
[1693864970772,0.00359711,25709.0,25708.0,1.56924241]
[1693864970966,2.71709656,25709.0,25708.0,0.43664527]
[1693864971179,2.57840595,25709.0,25708.0,0.43664527]
[1693864971382,3.06051954,25709.0,25708.0,0.43664527]
[1693864971576,3.42845635,25709.0,25708.0,0.05]
[1693864971784,3.53536916,25709.0,25708.0,0.025]
[1693864971986,3.53536916,25709.0,25708.0,0.003]
[1693864972428,3.53536916,25709.0,25708.0,0.011]
[1693864972664,3.53536916,25709.0,25705.0,0.1618]
[1693864972845,0.13910419,25707.0,25706.0,0.38664527]
[1693864973045,2.95659819,25707.0,25706.0,0.38664527]
[1693864973397,3.595492,25707.0,25706.0,0.38664527]
[1693864973673,3.73459619,25707.0,25706.0,0.38664527]
[1693864973813,3.595492,25707.0,25706.0,0.38664527]
[1693864974010,3.73759619,25707.0,25706.0,0.38664527]
[1693864974239,2.042496,25707.0,25706.0,0.38664527]
[1693864974435,2.18160019,25707.0,25706.0,0.38664527]
[1693864974650,2.18460019,25707.0,25706.0,0.38764527]
[1693864975051,3.05534745,25707.0,25706.0,0.38764527]
[1693864975617,3.055351,25707.0,25706.0,0.38764527]
[1693864975825,2.96259819,25707.0,25706.0,0.38764527]
[1693864976033,0.42135706,25707.0,25706.0,0.56454909]
[1693864976238,0.09875287,25707.0,25706.0,0.65839462]
[1693864976915,0.34705287,25708.0,25706.0,0.69629562]
[1693864977118,0.2543,25708.0,25707.0,0.54844527]
[1693864978791,0.34705287,25708.0,25707.0,0.57344527]
[1693864979004,0.2543,25708.0,25707.0,0.57344527]
[1693864979204,0.2543,25708.0,25707.0,0.59844527]
[1693864979782,0.2543,25708.0,25707.0,0.73027909]
[1693864980207,0.2543,25708.0,25707.0,0.87745155]
[1693864980518,0.2543,25708.0,25707.0,0.85745155]
[1693864980770,0.2543,25708.0,25707.0,0.73027909]
[1693864980939,0.2543,25708.0,25707.0,0.75527909]
[1693864981144,0.4443,25708.0,25707.0,0.75527909]
[1693864981345,0.4443,25708.0,25707.0,0.73027909]
[1693864981519,0.4443,25708.0,25707.0,0.70527909]
[1693864981740,0.4443,25708.0,25707.0,0.75527909]
[1693864982379,0.53705287,25708.0,25707.0,0.75527909]
[1693864983454,0.53705287,25708.0,25707.0,0.73027909]
[1693864983789,0.53705287,25708.0,25707.0,0.75527909]
[1693864984031,0.53705287,25708.0,25707.0,0.79417809]
[1693864984641,0.53705287,25708.0,25707.0,0.93163045]
[1693864986260,0.67411107,25708.0,25707.0,0.93163045]
[1693864987156,0.81321526,25708.0,25707.0,0.90663045]
[1693864987713,0.81321526,25708.0,25707.0,0.88163045]
[1693864988332,0.72046239,25708.0,25707.0,0.84273145]
[1693864988959,0.5371763,25708.0,25707.0,1.36812845]
[1693864989158,0.19,25708.0,25707.0,1.36812845]
[1693864989791,0.14964949,25708.0,25707.0,1.72362055]
[1693864989996,0.14964949,25708.0,25707.0,1.54054055]
[1693864991649,0.14964949,25708.0,25707.0,1.26129463]
[1693864991841,0.14964949,25708.0,25707.0,1.57847093]
[1693864992067,0.10929898,25708.0,25707.0,1.33941463]
[1693864992284,0.00359711,25709.0,25707.0,1.33941463]
[1693864992285,0.00359711,25709.0,25707.0,1.56327363]
[1693864992635,0.00359711,25709.0,25708.0,1.33756355]
[1693864992850,0.00359711,25709.0,25708.0,0.38664527]
[1693864993055,0.09647341,25709.0,25708.0,0.38664527]
[1693864993243,0.09647341,25709.0,25708.0,0.53678139]
[1693864994231,0.2355776,25709.0,25708.0,0.55678139]
[1693864994574,0.23573546,25709.0,25708.0,0.55678139]
[1693864994799,0.1427013,25709.0,25708.0,0.55678139]
[1693864995011,0.1427013,25709.0,25708.0,0.43164527]
[1693864995396,0.18906937,25709.0,25708.0,0.43164527]
[1693864996253,0.62621194,25709.0,25708.0,0.43164527]
[1693864996896,0.62684494,25709.0,25708.0,0.43164527]
[1693864997321,0.67337289,25709.0,25708.0,0.43164527]
[1693864997716,0.42241559,25709.0,25708.0,0.43164527]
[1693864997919,0.85955165,25709.0,25708.0,0.43164527]
[1693864998261,0.85954691,25709.0,25708.0,0.55274527]
[1693864998470,0.67337289,25709.0,25708.0,0.6599331]
[1693864998678,0.67337289,25709.0,25708.0,0.73759621]
[1693864998894,0.42240972,25709.0,25708.0,0.73759621]
[1693864999144,0.67337289,25709.0,25708.0,0.73759621]
[1693864999571,0.67337289,25709.0,25708.0,0.77649421]
[1693864999778,0.42241009,25709.0,25708.0,0.85429021]
[1693864999999,0.62690643,25709.0,25708.0,1.26299021]
[1693865000208,0.14323107,25709.0,25708.0,1.36594238]
[1693865000437,0.09668857,25709.0,25708.0,1.36852238]
[1693865000651,0.09668857,25709.0,25708.0,1.36978238]
[1693865000896,0.09668857,25709.0,25708.0,1.36444238]
[1693865001175,0.09668857,25709.0,25708.0,1.36570238]
[1693865001364,0.09668857,25709.0,25708.0,1.52460338]
[1693865001571,0.09668857,25709.0,25708.0,1.74765956]
[1693865001775,0.09668857,25709.0,25708.0,1.73427956]
[1693865001994,0.09668857,25709.0,25708.0,1.72305956]
[1693865002219,0.09668857,25709.0,25708.0,1.65681956]
[1693865002854,0.09668857,25709.0,25708.0,1.12701956]
[1693865003030,0.09668857,25709.0,25708.0,0.97141856]
[1693865003267,0.23632253,25709.0,25708.0,0.97141856]
[1693865003675,0.28668857,25709.0,25708.0,0.97141856]
[1693865004089,0.28668857,25709.0,25708.0,1.38011856]
[1693865004719,0.28668857,25709.0,25708.0,1.53572556]
[1693865014313,0.28668857,25709.0,25708.0,0.70820438]
[1693865014552,0.42620382,25709.0,25708.0,0.63054127]
[1693865014753,0.28656986,25709.0,25708.0,0.63054127]
[1693865015007,0.42620382,25709.0,25708.0,0.63054127]
[1693865015402,0.42620382,25709.0,25708.0,0.66943927]
[1693865015626,0.42620382,25709.0,25708.0,0.74476294]
[1693865015795,0.33323107,25709.0,25708.0,0.97035086]
[1693865016347,0.28656041,25709.0,25708.0,0.97035086]
[1693865016536,0.42619437,25709.0,25708.0,0.97035086]
[1693865017907,0.42619437,25709.0,25708.0,1.37905086]
[1693865018313,0.42619437,25709.0,25708.0,1.58761209]
[1693865018314,0.28656041,25709.0,25708.0,1.58761209]
[1693865018524,0.28656041,25709.0,25708.0,1.58791209]
[1693865018934,0.28656041,25709.0,25708.0,1.58761209]
[1693865019133,0.28656041,25709.0,25708.0,1.58797209]
[1693865019287,0.28656041,25709.0,25708.0,1.34500294]
[1693865019452,0.28656041,25709.0,25708.0,1.35088294]
[1693865019666,0.28656041,25709.0,25708.0,1.35082294]
[1693865019997,0.28656041,25709.0,25708.0,1.35070294]
[1693865020226,0.28656041,25709.0,25708.0,1.35982294]
[1693865020424,0.28656041,25709.0,25708.0,1.63023648]
[1693865020630,0.28656041,25709.0,25708.0,1.62363648]
[1693865020834,0.28656041,25709.0,25708.0,1.62327648]
[1693865021036,0.28656041,25709.0,25708.0,1.62225648]
[1693865021238,0.28656041,25709.0,25708.0,1.62291648]
[1693865021432,0.28656041,25709.0,25708.0,1.62189648]
[1693865021755,0.42619437,25709.0,25708.0,1.62165648]
[1693865021964,0.42619437,25709.0,25708.0,1.62171648]
[1693865022167,0.42619437,25709.0,25708.0,1.62165648]
[1693865022323,0.33323107,25709.0,25708.0,1.35298294]
[1693865022525,0.33323107,25709.0,25708.0,1.61968756]
[1693865022730,0.33323107,25709.0,25708.0,1.61584756]
[1693865022926,0.33323107,25709.0,25708.0,1.61506756]
[1693865023123,0.33323107,25709.0,25708.0,1.61464756]
[1693865023336,0.33323107,25709.0,25708.0,1.61350756]
[1693865023545,0.33323107,25709.0,25708.0,1.61170756]
[1693865023718,0.33323107,25709.0,25708.0,1.61278756]
[1693865023922,0.33323107,25709.0,25708.0,1.61272756]
[1693865024128,0.33323107,25709.0,25708.0,1.61134756]
[1693865024335,0.33323107,25709.0,25708.0,1.61194756]
[1693865024568,0.42626807,25709.0,25708.0,1.61062756]
[1693865024762,0.42626807,25709.0,25708.0,1.60948756]
[1693865024763,0.28663411,25709.0,25708.0,1.60948756]
[1693865025029,0.28663411,25709.0,25708.0,1.61056756]
[1693865025215,0.28663411,25709.0,25708.0,1.60984756]
[1693865025422,0.28663411,25709.0,25708.0,1.60990756]
[1693865025593,0.28663411,25709.0,25708.0,1.60858756]
[1693865025790,0.28663411,25709.0,25708.0,1.60720756]
[1693865026032,0.28663411,25709.0,25708.0,1.61068756]
[1693865026233,0.28663411,25709.0,25708.0,1.60996756]
[1693865026432,0.28663411,25709.0,25708.0,1.61008756]
[1693865026631,0.28663411,25709.0,25708.0,1.60948756]
[1693865026977,0.28663411,25709.0,25708.0,1.60972756]
[1693865027384,0.28663411,25709.0,25708.0,1.61374756]
[1693865027574,0.28663411,25709.0,25708.0,1.61380756]
[1693865028003,0.28663411,25709.0,25708.0,1.61374756]
[1693865028209,0.28663411,25709.0,25708.0,1.61548756]
[1693865028445,0.28663411,25709.0,25708.0,1.34728294]
[1693865028663,0.28663411,25709.0,25708.0,1.34866294]
[1693865028841,0.19359711,25709.0,25708.0,1.37314294]
[1693865029068,0.19359711,25709.0,25708.0,1.37524294]
[1693865029260,0.19359711,25709.0,25708.0,1.37476294]
[1693865029565,0.19359711,25709.0,25708.0,1.37260294]
[1693865029800,0.19359711,25709.0,25708.0,1.37410294]
[1693865030100,0.19359711,25709.0,25708.0,1.37398294]
[1693865030299,0.19359711,25709.0,25708.0,1.37266294]
[1693865030515,0.19359711,25709.0,25708.0,1.37626294]
[1693865030720,0.19359711,25709.0,25708.0,1.37332294]
[1693865030921,0.19359711,25709.0,25708.0,1.37320294]
[1693865031097,0.19359711,25709.0,25708.0,1.37314294]
[1693865031301,0.19359711,25709.0,25708.0,1.37320294]
[1693865031510,0.19359711,25709.0,25708.0,1.37338294]
[1693865031717,0.19359711,25709.0,25708.0,1.37326294]
[1693865031916,0.13963396,25711.0,25708.0,1.37320294]
[1693865032175,0.18617326,25714.0,25711.0,0.564272]
[1693865032343,0.18617326,25714.0,25713.0,0.46442527]
[1693865032553,0.43841298,25715.0,25713.0,0.66330527]
[1693865032758,0.43841298,25715.0,25714.0,0.5307538]
[1693865033112,0.85053558,25715.0,25714.0,0.5307538]
[1693865033536,0.85053558,25715.0,25714.0,0.82124376]
[1693865033767,0.66436232,25715.0,25714.0,0.82124376]
[1693865034003,0.0196,25715.0,25714.0,0.6907428]
[1693865034175,0.0196,25715.0,25714.0,1.2455428]
[1693865034349,0.0196,25715.0,25714.0,1.50276245]
[1693865035140,0.0196,25715.0,25714.0,0.93407345]
[1693865035744,0.0196,25715.0,25714.0,0.95407345]
[1693865036625,0.0196,25715.0,25714.0,0.99296245]
[1693865037036,0.0196,25715.0,25714.0,0.95407345]
[1693865042143,0.11255483,25715.0,25714.0,0.95407345]
[1693865042412,0.11255483,25715.0,25714.0,0.87629545]
[1693865042945,0.25198596,25715.0,25714.0,0.55274527]
[1693865043156,2.79160795,25715.0,25714.0,0.43164527]
[1693865043419,3.00861895,25715.0,25714.0,0.43164527]
[1693865043985,3.00861895,25715.0,25714.0,0.40664527]
[1693865044179,2.77597923,25715.0,25714.0,0.40664527]
[1693865044378,2.77597923,25715.0,25714.0,0.38664527]
[1693865044580,2.77797923,25715.0,25714.0,0.38664527]
[1693865045040,2.77597923,25715.0,25714.0,0.38664527]
[1693865045249,1.97822323,25715.0,25714.0,0.50874527]
[1693865045602,2.21266581,25715.0,25714.0,0.50874527]
[1693865045727,1.43690981,25715.0,25714.0,0.50874527]
[1693865046086,1.43490981,25715.0,25714.0,0.50874527]
[1693865046292,1.43290981,25715.0,25714.0,0.50774527]
[1693865046489,1.43490981,25715.0,25714.0,0.50774527]
[1693865046704,1.43290981,25715.0,25714.0,0.50774527]
[1693865047486,1.43490981,25715.0,25714.0,0.50874527]
[1693865047986,1.43290981,25715.0,25714.0,0.50774527]
[1693865048398,0.65715381,25715.0,25714.0,0.6725736]
[1693865050529,0.65515381,25715.0,25714.0,0.6895736]
[1693865050952,0.65715381,25715.0,25714.0,0.6895736]
[1693865051356,0.65515381,25715.0,25714.0,0.6895736]
[1693865051703,0.65515381,25715.0,25714.0,0.7005736]
[1693865052597,0.60865493,25715.0,25714.0,0.89507596]
[1693865052801,0.2055437,25715.0,25714.0,0.89507596]
[1693865053004,0.34500025,25715.0,25714.0,0.85618696]
[1693865053424,0.34500025,25715.0,25714.0,0.7783516]
[1693865053630,0.34500025,25715.0,25714.0,0.7394626]
[1693865053833,0.34500025,25715.0,25714.0,0.7005736]
[1693865054051,0.2055437,25715.0,25714.0,0.7005736]
[1693865055069,0.61476529,25715.0,25714.0,0.7005736]
[1693865055210,0.2055437,25715.0,25714.0,0.53574527]
[1693865055410,0.61516845,25715.0,25714.0,0.53574527]
[1693865055835,0.61517033,25715.0,25714.0,0.53574527]
[1693865056670,2.99493721,25715.0,25714.0,0.41464527]
[1693865060464,3.34019838,25715.0,25714.0,0.028]
[1693865060670,3.37916999,25715.0,25714.0,0.028]
[1693865060878,3.65833765,25715.0,25714.0,0.028]
[1693865061289,3.65833765,25715.0,25714.0,0.017]
[1693865061492,3.38216999,25715.0,25714.0,0.018]
[1693865061914,3.37916999,25715.0,25714.0,0.017]
[1693865062331,3.37916999,25715.0,25710.0,0.09375919]
[1693865062538,0.32549571,25712.0,25711.0,0.38664527]
[1693865062738,1.88118771,25712.0,25711.0,0.38664527]
[1693865063319,1.74168955,25712.0,25711.0,0.38664527]
[1693865063609,1.74168955,25712.0,25711.0,0.79134483]
[1693865063610,0.13950543,25712.0,25711.0,0.79134483]
[1693865063814,0.13950543,25712.0,25711.0,0.50774527]
[1693865064155,0.13950543,25712.0,25711.0,0.73771745]
[1693865064375,0.13950543,25712.0,25711.0,0.51074527]
[1693865064578,0.13950543,25712.0,25711.0,0.50774527]
[1693865064776,0.13950543,25712.0,25711.0,0.51874527]
[1693865065275,2.25664749,25713.0,25711.0,0.51874527]
[1693865065276,0.09300859,25713.0,25711.0,0.78333381]
[1693865065572,0.09300859,25713.0,25712.0,0.50774527]
[1693865065709,0.09300859,25713.0,25712.0,0.54663727]
[1693865065928,0.09300859,25713.0,25712.0,0.67164125]
[1693865066286,0.09300859,25713.0,25712.0,0.71053325]
[1693865066641,0.09300859,25713.0,25712.0,0.71853325]
[1693865067375,0.09300859,25713.0,25712.0,0.97207642]
[1693865067913,0.09300859,25713.0,25712.0,0.97507642]
[1693865070450,0.23251402,25713.0,25712.0,0.97507642]
[1693865070834,0.23251402,25713.0,25712.0,0.93618442]
[1693865072684,0.09300859,25713.0,25712.0,0.93618442]
[1693865073319,0.23251402,25713.0,25712.0,0.93618442]
[1693865073740,0.09300859,25713.0,25712.0,0.93618442]
[1693865081631,0.09300859,25713.0,25712.0,0.97507642]
[1693865082163,0.09300859,25713.0,25712.0,0.93618442]
[1693865083240,0.09300859,25713.0,25712.0,1.05728442]
[1693865084135,0.23251402,25714.0,25712.0,1.09617642]
[1693865084339,0.09300859,25714.0,25713.0,0.62954052]
[1693865084562,0.09300859,25714.0,25713.0,0.74621052]
[1693865085450,0.09600859,25714.0,25713.0,0.74621052]
[1693865085804,0.09300859,25714.0,25713.0,0.84929518]
[1693865086062,0.09600859,25714.0,25713.0,0.84929518]
[1693865086481,0.09300859,25714.0,25713.0,0.84929518]
[1693865086655,0.09300859,25714.0,25713.0,0.81040518]
[1693865086857,0.09600859,25714.0,25713.0,0.81040518]
[1693865088056,0.09300859,25714.0,25713.0,0.81040518]
[1693865088628,0.09300859,25714.0,25713.0,0.85540518]
[1693865088804,0.09300859,25714.0,25713.0,0.89429518]
[1693865091145,0.25211402,25715.0,25713.0,0.89429518]
[1693865091355,0.25211402,25715.0,25714.0,0.50774527]
[1693865091554,0.11260859,25715.0,25714.0,0.58552327]
[1693865092753,0.11260859,25715.0,25714.0,0.60252327]
[1693865094475,0.11260859,25715.0,25714.0,0.61352327]
[1693865094896,0.11260859,25715.0,25714.0,0.84964372]
[1693865095514,0.11260859,25715.0,25714.0,0.95559619]
[1693865098642,0.11260859,25715.0,25714.0,0.99448519]
[1693865098793,0.0196,25715.0,25714.0,0.99448519]
[1693865099001,0.0196,25715.0,25714.0,1.40318519]
[1693865099604,0.2096,25715.0,25714.0,1.40318519]
[1693865101946,0.2096,25715.0,25714.0,1.40308519]
[1693865102160,0.2096,25715.0,25714.0,1.16696474]
[1693865103207,0.2096,25715.0,25714.0,1.43905284]
[1693865103948,0.2096,25715.0,25714.0,1.16696474]
[1693865104183,0.2096,25715.0,25714.0,1.38375402]
[1693865110475,0.2096,25715.0,25714.0,1.36675402]
[1693865110681,0.2096,25715.0,25714.0,1.38075402]
[1693865110886,0.2096,25715.0,25714.0,1.39975402]
[1693865111093,0.2096,25715.0,25714.0,1.37475402]
[1693865111471,0.2096,25715.0,25714.0,1.38075402]
[1693865111964,0.2096,25715.0,25714.0,1.40575402]
[1693865115273,0.2096,25715.0,25714.0,1.18896474]
[1693865115453,0.2096,25715.0,25714.0,1.48662342]
[1693865118643,0.2096,25715.0,25714.0,1.18896474]
[1693865119072,0.2096,25715.0,25714.0,1.47475356]
[1693865119278,0.2096,25715.0,25714.0,1.18896474]
[1693865119480,0.2096,25715.0,25714.0,1.42414974]
[1693865120348,0.2096,25715.0,25714.0,1.18896474]
[1693865120990,0.2096,25715.0,25714.0,1.43051429]
[1693865121190,0.2096,25715.0,25714.0,1.18896474]
[1693865122209,0.2096,25715.0,25714.0,1.40499336]
[1693865123134,0.2096,25715.0,25714.0,1.25760474]
[1693865123340,0.2096,25715.0,25714.0,1.37854474]
[1693865123562,0.2096,25715.0,25714.0,1.37842474]
[1693865123767,0.2096,25715.0,25714.0,1.37812474]
[1693865123970,0.2096,25715.0,25714.0,1.23736474]
[1693865126061,0.2352,25719.0,25716.0,0.4087]
[1693865126287,0.32538175,25722.0,25719.0,0.116643]
[1693865126288,0.09296621,25722.0,25719.0,0.116643]
[1693865126491,0.1505,25722.0,25721.0,0.54910127]
[1693865126712,0.23241553,25723.0,25721.0,0.78260532]
[1693865126863,0.23241553,25723.0,25722.0,0.46439927]
[1693865127061,0.09296621,25723.0,25722.0,0.50327627]
[1693865127469,0.09296621,25723.0,25722.0,0.88661478]
[1693865127690,0.08796621,25723.0,25722.0,0.88661478]
[1693865127897,0.08796621,25723.0,25722.0,0.99551865]
[1693865128144,0.08796621,25723.0,25722.0,1.02051865]
[1693865128924,0.382,25724.0,25722.0,1.02051865]
[1693865129195,0.382,25724.0,25723.0,0.47134527]
[1693865129416,0.382,25724.0,25723.0,0.54909527]
[1693865129618,0.34488175,25725.0,25723.0,0.66481913]
[1693865129818,0.34488175,25725.0,25724.0,0.47134527]
[1693865129996,0.15894932,25725.0,25724.0,0.47134527]
[1693865131409,0.15894932,25725.0,25724.0,0.47934527]
[1693865131839,0.0195,25725.0,25724.0,0.55709327]
[1693865132054,0.0195,25725.0,25724.0,0.64479577]
[1693865132273,0.0195,25725.0,25724.0,0.64679577]
[1693865132476,0.2095,25725.0,25724.0,0.64679577]
[1693865132649,0.22527001,25725.0,25724.0,0.64679577]
[1693865133279,0.22527001,25725.0,25724.0,0.60792177]
[1693865133507,0.22602739,25725.0,25724.0,0.48134527]
[1693865133902,0.03602739,25725.0,25724.0,0.48134527]
[1693865134870,0.03602739,25725.0,25724.0,0.52021927]
[1693865136297,0.03602739,25725.0,25724.0,0.55909327]
[1693865137785,0.12890021,25725.0,25724.0,0.55909327]
[1693865137989,0.03602739,25725.0,25724.0,0.65811468]
[1693865138550,0.03602739,25725.0,25724.0,0.9389444]
[1693865139424,0.03602739,25725.0,25724.0,1.3476444]
[1693865139604,0.03527001,25725.0,25724.0,1.3456444]
[1693865139801,0.03527001,25725.0,25724.0,1.3566444]
[1693865140008,0.03527001,25725.0,25724.0,1.3486444]
[1693865140258,0.03527001,25725.0,25724.0,1.3646444]
[1693865140459,0.03527001,25725.0,25724.0,1.3486444]
[1693865140869,0.03527001,25725.0,25724.0,1.3736444]
[1693865141078,0.03527001,25725.0,25724.0,1.4583444]
[1693865141554,0.03527001,25725.0,25724.0,1.4473444]
[1693865141939,0.03527001,25725.0,25724.0,1.4663444]
[1693865142349,0.03527001,25725.0,25724.0,1.27702868]
[1693865142668,0.03527001,25725.0,25724.0,1.44134234]
[1693865143102,0.03527001,25725.0,25724.0,1.46634234]
[1693865143523,0.05527001,25725.0,25724.0,1.41634234]
[1693865143723,0.05527001,25725.0,25724.0,1.44134234]
[1693865143930,0.05527001,25725.0,25724.0,1.35664234]
[1693865144155,0.05527001,25725.0,25724.0,1.33164234]
[1693865144382,0.05527001,25725.0,25724.0,1.35664234]
[1693865144966,0.05527001,25725.0,25724.0,1.04546551]
[1693865145166,0.05527001,25725.0,25724.0,1.21777346]
[1693865145548,0.0395,25725.0,25724.0,1.28551346]
[1693865145761,0.0395,25725.0,25724.0,1.05538024]